[Event "*** Titled Tuesday Blitz"]
[Site "Chess.com"]
[Date "2020.11.03"]
[Round "6"]
[White "SergeyShtyka"]
[Black "chessdjw"]
[Result "0-1"]
[WhiteElo "2359"]
[BlackElo "2661"]
[TimeControl "180+1"]
[EndTime "11:10:00 PST"]
[Termination "chessdjw won on time"]

1. e4 {[%clk 0:02:57.7]} 1... c5 {[%clk 0:02:59.9]} 2. Nf3 {[%clk 0:02:57.3]}
2... d6 {[%clk 0:02:58.7]} 3. d4 {[%clk 0:02:56.1]} 3... cxd4 {[%clk 0:02:59.6]}
4. Nxd4 {[%clk 0:02:55.9]} 4... Nf6 {[%clk 0:03:00.3]} 5. Nc3 {[%clk 0:02:56.4]}
5... a6 {[%clk 0:03:00.5]} 6. Bd3 {[%clk 0:02:56]} 6... e5 {[%clk 0:02:55.3]} 7.
Nde2 {[%clk 0:02:54.4]} 7... Be7 {[%clk 0:02:55.5]} 8. O-O {[%clk 0:02:54.2]}
8... O-O {[%clk 0:02:54.5]} 9. Bg5 {[%clk 0:02:54.1]} 9... Be6 {[%clk
0:02:52.5]} 10. Ng3 {[%clk 0:02:48.9]} 10... Nbd7 {[%clk 0:02:43.5]} 11. h3
{[%clk 0:02:46.4]} 11... Rc8 {[%clk 0:02:40.2]} 12. Qf3 {[%clk 0:02:45.9]} 12...
g6 {[%clk 0:02:34.9]} 13. Bh6 {[%clk 0:02:35.5]} 13... Re8 {[%clk 0:02:34.3]}
14. Nf5 {[%clk 0:02:29.8]} 14... Bxf5 {[%clk 0:01:50]} 15. exf5 {[%clk
0:02:28.7]} 15... Bf8 {[%clk 0:01:35.9]} 16. Bg5 {[%clk 0:02:13.7]} 16... Rxc3
{[%clk 0:01:19.7]} 17. bxc3 {[%clk 0:02:09.2]} 17... d5 {[%clk 0:01:19.7]} 18.
fxg6 {[%clk 0:01:32.9]} 18... hxg6 {[%clk 0:01:16.2]} 19. Qd1 {[%clk 0:01:20.5]}
19... e4 {[%clk 0:01:13.7]} 20. Be2 {[%clk 0:01:20.7]} 20... Qc7 {[%clk
0:01:11.4]} 21. c4 {[%clk 0:01:10.5]} 21... dxc4 {[%clk 0:01:08.3]} 22. Qd4
{[%clk 0:01:09.9]} 22... Bc5 {[%clk 0:00:45.7]} 23. Qxc4 {[%clk 0:01:06.1]}
23... Qe5 {[%clk 0:00:45.9]} 24. Be3 {[%clk 0:00:54.3]} 24... Bd6 {[%clk
0:00:45.5]} 25. g3 {[%clk 0:00:53.2]} 25... Qf5 {[%clk 0:00:42.6]} 26. Kh2
{[%clk 0:00:47.2]} 26... Ne5 {[%clk 0:00:38.1]} 27. Qb3 {[%clk 0:00:47.4]} 27...
Nf3+ {[%clk 0:00:30.7]} 28. Bxf3 {[%clk 0:00:45.3]} 28... exf3 {[%clk
0:00:30.3]} 29. Qa4 {[%clk 0:00:26.1]} 29... Re4 {[%clk 0:00:23.5]} 30. Qb3
{[%clk 0:00:18.2]} 30... Rh4 {[%clk 0:00:22.9]} 0-1

[Event "*** Titled Tuesday Blitz"]
[Site "Chess.com"]
[Date "2020.11.03"]
[Round "6"]
[White "swimmerchess"]
[Black "Duhless"]
[Result "0-1"]
[WhiteElo "2850"]
[BlackElo "3003"]
[TimeControl "180+1"]
[EndTime "11:10:01 PST"]
[Termination "Duhless won by resignation"]

1. e4 {[%clk 0:03:00.9]} 1... c6 {[%clk 0:02:59.7]} 2. d4 {[%clk 0:03:01.1]}
2... d5 {[%clk 0:03:00.6]} 3. e5 {[%clk 0:03:01]} 3... Bf5 {[%clk 0:03:00.2]} 4.
c4 {[%clk 0:03:01.3]} 4... e6 {[%clk 0:02:59.7]} 5. Nc3 {[%clk 0:03:01.7]} 5...
Ne7 {[%clk 0:02:58.8]} 6. Nge2 {[%clk 0:03:01.8]} 6... Nd7 {[%clk 0:02:55.4]} 7.
Nf4 {[%clk 0:03:01.8]} 7... dxc4 {[%clk 0:02:50.5]} 8. Bxc4 {[%clk 0:03:02.7]}
8... Nb6 {[%clk 0:02:50.6]} 9. Bb3 {[%clk 0:03:02.9]} 9... Ned5 {[%clk 0:02:49]}
10. Ncxd5 {[%clk 0:03:03.2]} 10... cxd5 {[%clk 0:02:47.4]} 11. g4 {[%clk
0:03:02.2]} 11... Be4 {[%clk 0:02:46.7]} 12. f3 {[%clk 0:03:02.6]} 12... Qh4+
{[%clk 0:02:35.9]} 13. Ke2 {[%clk 0:03:03]} 13... Bg6 {[%clk 0:02:35.4]} 14. Be3
{[%clk 0:03:03.5]} 14... Rc8 {[%clk 0:02:28]} 15. Rc1 {[%clk 0:02:54.2]} 15...
Rxc1 {[%clk 0:01:34.6]} 16. Qxc1 {[%clk 0:02:55.1]} 16... Kd7 {[%clk 0:01:32.3]}
17. Qc3 {[%clk 0:02:39.1]} 17... Be7 {[%clk 0:01:17.8]} 18. Qa5 {[%clk
0:02:34.2]} 18... Ra8 {[%clk 0:01:16.5]} 19. Rc1 {[%clk 0:02:32.5]} 19... Qxh2+
{[%clk 0:01:15.1]} 20. Kd1 {[%clk 0:02:13]} 20... Qh1+ {[%clk 0:01:12.8]} 21.
Ke2 {[%clk 0:02:13.1]} 21... Qh2+ {[%clk 0:01:12.8]} 22. Kd1 {[%clk 0:02:13.5]}
22... Qxb2 {[%clk 0:01:05.6]} 23. Qb5+ {[%clk 0:01:41.9]} 23... Kd8 {[%clk
0:01:05]} 24. a4 {[%clk 0:01:42.4]} 24... Rc8 {[%clk 0:00:55.2]} 25. Ne2 {[%clk
0:01:25.5]} 25... Rxc1+ {[%clk 0:00:48.3]} 26. Bxc1 {[%clk 0:01:26.4]} 26... Qb1
{[%clk 0:00:48.8]} 27. Kd2 {[%clk 0:01:11.6]} 27... h5 {[%clk 0:00:44.4]} 28.
gxh5 {[%clk 0:01:05.9]} 28... Bxh5 {[%clk 0:00:41.5]} 29. a5 {[%clk 0:01:06.2]}
29... Nc4+ {[%clk 0:00:38.7]} 30. Bxc4 {[%clk 0:01:05.9]} 30... Qb4+ {[%clk
0:00:39.1]} 31. Qxb4 {[%clk 0:00:47.5]} 31... Bxb4+ {[%clk 0:00:40]} 32. Kd3
{[%clk 0:00:48.4]} 32... Bg6+ {[%clk 0:00:39.2]} 33. Ke3 {[%clk 0:00:46.4]}
33... dxc4 {[%clk 0:00:39.6]} 34. a6 {[%clk 0:00:46.7]} 34... bxa6 {[%clk
0:00:38.4]} 35. Nf4 {[%clk 0:00:47.3]} 35... Kd7 {[%clk 0:00:35]} 36. d5 {[%clk
0:00:40.1]} 36... Bc5+ {[%clk 0:00:34.8]} 37. Ke2 {[%clk 0:00:40.6]} 37... exd5
{[%clk 0:00:35.4]} 38. Nxd5 {[%clk 0:00:41.5]} 38... Ke6 {[%clk 0:00:34.5]} 39.
Nc7+ {[%clk 0:00:41.9]} 39... Kxe5 {[%clk 0:00:33.5]} 40. Nxa6 {[%clk
0:00:42.8]} 40... Bd6 {[%clk 0:00:24.2]} 41. Bb2+ {[%clk 0:00:42.6]} 41... Kd5
{[%clk 0:00:24.2]} 42. Bxg7 {[%clk 0:00:39.8]} 42... Kc6 {[%clk 0:00:24.2]} 43.
Bd4 {[%clk 0:00:35.1]} 43... Kb5 {[%clk 0:00:23.9]} 0-1

[Event "*** Titled Tuesday Blitz"]
[Site "Chess.com"]
[Date "2020.11.03"]
[Round "6"]
[White "esrosenberg"]
[Black "Region_07"]
[Result "1-0"]
[WhiteElo "2342"]
[BlackElo "2443"]
[TimeControl "180+1"]
[EndTime "11:10:02 PST"]
[Termination "esrosenberg won by checkmate"]

1. d4 {[%clk 0:03:00.9]} 1... d5 {[%clk 0:02:54.9]} 2. Bg5 {[%clk 0:03:00.9]}
2... f6 {[%clk 0:02:54.1]} 3. Bd2 {[%clk 0:03:00.3]} 3... Bf5 {[%clk 0:02:47.4]}
4. c4 {[%clk 0:02:33.5]} 4... e6 {[%clk 0:02:43.6]} 5. Nc3 {[%clk 0:02:32.4]}
5... Nc6 {[%clk 0:02:38.8]} 6. Nf3 {[%clk 0:02:26.1]} 6... Nge7 {[%clk
0:02:10.6]} 7. a3 {[%clk 0:02:23.7]} 7... g5 {[%clk 0:02:03.4]} 8. e3 {[%clk
0:02:21.4]} 8... h5 {[%clk 0:02:02.6]} 9. cxd5 {[%clk 0:02:03.1]} 9... exd5
{[%clk 0:02:01.8]} 10. Bb5 {[%clk 0:02:02.7]} 10... Bg7 {[%clk 0:01:54.4]} 11.
Qb3 {[%clk 0:01:49]} 11... Bg6 {[%clk 0:01:51.8]} 12. Rc1 {[%clk 0:01:41.4]}
12... O-O {[%clk 0:01:43]} 13. Na4 {[%clk 0:01:22.3]} 13... a6 {[%clk
0:01:16.7]} 14. Bd3 {[%clk 0:01:15.3]} 14... Bxd3 {[%clk 0:01:09.4]} 15. Qxd3
{[%clk 0:01:16.2]} 15... b6 {[%clk 0:01:01.3]} 16. O-O {[%clk 0:01:01.9]} 16...
Qd7 {[%clk 0:01:01.2]} 17. Nc3 {[%clk 0:00:59.3]} 17... Nd8 {[%clk 0:00:45.7]}
18. e4 {[%clk 0:00:57.4]} 18... Ne6 {[%clk 0:00:45]} 19. Nxd5 {[%clk 0:00:52.8]}
19... Nxd5 {[%clk 0:00:44.9]} 20. exd5 {[%clk 0:00:53.3]} 20... Qxd5 {[%clk
0:00:45.5]} 21. Rfe1 {[%clk 0:00:50.1]} 21... Rae8 {[%clk 0:00:43.4]} 22. Qg6
{[%clk 0:00:49.3]} 22... h4 {[%clk 0:00:36.5]} 23. h3 {[%clk 0:00:42.4]} 23...
Qd7 {[%clk 0:00:33.1]} 24. Bb4 {[%clk 0:00:31.9]} 24... Nf4 {[%clk 0:00:32.2]}
25. Qc2 {[%clk 0:00:23.1]} 25... Rxe1+ {[%clk 0:00:28.5]} 26. Rxe1 {[%clk
0:00:22.7]} 26... Rd8 {[%clk 0:00:17.5]} 27. Re7 {[%clk 0:00:21]} 27... Qb5
{[%clk 0:00:06.1]} 28. Qxc7 {[%clk 0:00:18.2]} 28... Bf8 {[%clk 0:00:06.3]} 29.
Rh7 {[%clk 0:00:14]} 29... Re8 {[%clk 0:00:05.2]} 30. Qf7# {[%clk 0:00:13.6]}
1-0

[Event "*** Titled Tuesday Blitz"]
[Site "Chess.com"]
[Date "2020.11.03"]
[Round "6"]
[White "petrkostenko"]
[Black "Chessdude1987"]
[Result "1-0"]
[WhiteElo "2456"]
[BlackElo "2289"]
[TimeControl "180+1"]
[EndTime "11:10:02 PST"]
[Termination "petrkostenko won on time"]

1. c4 {[%clk 0:03:00.9]} 1... Nf6 {[%clk 0:02:59.3]} 2. g3 {[%clk 0:02:59]} 2...
g6 {[%clk 0:02:58.6]} 3. Bg2 {[%clk 0:02:59.2]} 3... Bg7 {[%clk 0:02:59]} 4. Nc3
{[%clk 0:02:59.8]} 4... O-O {[%clk 0:02:58.9]} 5. e4 {[%clk 0:03:00.5]} 5... d6
{[%clk 0:02:59.4]} 6. Nge2 {[%clk 0:03:01]} 6... a6 {[%clk 0:02:50.4]} 7. d3
{[%clk 0:02:57.7]} 7... Nc6 {[%clk 0:02:50.3]} 8. O-O {[%clk 0:02:56.6]} 8...
Rb8 {[%clk 0:02:50.6]} 9. a4 {[%clk 0:02:55.4]} 9... e5 {[%clk 0:02:45.6]} 10.
h3 {[%clk 0:02:55.3]} 10... Be6 {[%clk 0:02:40.8]} 11. Kh2 {[%clk 0:02:53.7]}
11... Nd7 {[%clk 0:02:40.8]} 12. Be3 {[%clk 0:02:45.1]} 12... f5 {[%clk
0:02:36.3]} 13. exf5 {[%clk 0:02:42.8]} 13... gxf5 {[%clk 0:02:35.9]} 14. f4
{[%clk 0:02:42.7]} 14... Nc5 {[%clk 0:02:26.6]} 15. fxe5 {[%clk 0:02:38.4]}
15... dxe5 {[%clk 0:02:26.4]} 16. Bxc5 {[%clk 0:02:37.1]} 16... Rf7 {[%clk
0:02:25.4]} 17. Nd5 {[%clk 0:02:36.3]} 17... Qe8 {[%clk 0:02:18]} 18. Qd2 {[%clk
0:02:34.9]} 18... b6 {[%clk 0:02:17.6]} 19. Be3 {[%clk 0:02:32.1]} 19... a5
{[%clk 0:02:17.3]} 20. Rae1 {[%clk 0:02:31.5]} 20... Rd8 {[%clk 0:02:13.9]} 21.
d4 {[%clk 0:02:28.3]} 21... e4 {[%clk 0:02:11.9]} 22. b3 {[%clk 0:02:23.4]}
22... Bxd5 {[%clk 0:02:09.4]} 23. cxd5 {[%clk 0:02:23.5]} 23... Rxd5 {[%clk
0:02:09.4]} 24. Nf4 {[%clk 0:02:22.9]} 24... Rd8 {[%clk 0:02:08.5]} 25. d5
{[%clk 0:02:23]} 25... Nb4 {[%clk 0:02:03.7]} 26. Rd1 {[%clk 0:02:20.6]} 26...
Be5 {[%clk 0:01:34.4]} 27. Qe2 {[%clk 0:02:19.9]} 27... Bxf4 {[%clk 0:01:31.4]}
28. Bxf4 {[%clk 0:02:19.7]} 28... Nxd5 {[%clk 0:01:31]} 29. Bc1 {[%clk
0:02:16.8]} 29... Rfd7 {[%clk 0:01:24.1]} 30. Bb2 {[%clk 0:02:14]} 30... Qg6
{[%clk 0:01:20.3]} 31. Qf2 {[%clk 0:01:56.8]} 31... Ne7 {[%clk 0:00:44]} 32.
Rxd7 {[%clk 0:01:51.5]} 32... Rxd7 {[%clk 0:00:44]} 33. g4 {[%clk 0:01:48.3]}
33... Rd3 {[%clk 0:00:27.4]} 34. gxf5 {[%clk 0:01:45.4]} 34... Qd6+ {[%clk
0:00:27.4]} 35. Kh1 {[%clk 0:01:43.9]} 35... Rd2 {[%clk 0:00:27.4]} 36. Qe3
{[%clk 0:01:27.2]} 36... Rxb2 {[%clk 0:00:26.7]} 37. f6 {[%clk 0:01:26.1]} 37...
Ng6 {[%clk 0:00:19.2]} 38. Qh6 {[%clk 0:01:22.5]} 38... Qf8 {[%clk 0:00:18.1]}
39. f7+ {[%clk 0:01:21.8]} 39... Kh8 {[%clk 0:00:18.1]} 40. Qg5 {[%clk
0:01:19.2]} 40... Rxg2 {[%clk 0:00:09.6]} 41. Kxg2 {[%clk 0:01:16.9]} 41... e3
{[%clk 0:00:07.5]} 42. Qf6+ {[%clk 0:01:16.4]} 42... Qg7 {[%clk 0:00:07.6]} 43.
Qxg7+ {[%clk 0:01:05.3]} 43... Kxg7 {[%clk 0:00:06.9]} 44. Kf3 {[%clk
0:01:05.9]} 44... Ne5+ {[%clk 0:00:06.2]} 45. Kxe3 {[%clk 0:01:06]} 45... Nxf7
{[%clk 0:00:06.4]} 46. Kd4 {[%clk 0:01:04.2]} 46... Nd6 {[%clk 0:00:04.4]} 47.
Kd5 {[%clk 0:01:03.7]} 47... h5 {[%clk 0:00:03.7]} 48. Kc6 {[%clk 0:01:03.2]}
1-0

[Event "*** Titled Tuesday Blitz"]
[Site "Chess.com"]
[Date "2020.11.03"]
[Round "6"]
[White "Sven_Tica"]
[Black "vanyakuba"]
[Result "1-0"]
[WhiteElo "2688"]
[BlackElo "2514"]
[TimeControl "180+1"]
[EndTime "11:10:03 PST"]
[Termination "Sven_Tica won by resignation"]

1. d4 {[%clk 0:03:00.9]} 1... d5 {[%clk 0:02:59.7]} 2. c4 {[%clk 0:03:01.4]}
2... e6 {[%clk 0:03:00.1]} 3. Nf3 {[%clk 0:03:01.9]} 3... c5 {[%clk 0:03:00.3]}
4. cxd5 {[%clk 0:03:01.7]} 4... exd5 {[%clk 0:03:01.2]} 5. Nc3 {[%clk
0:03:02.1]} 5... Nc6 {[%clk 0:03:01.7]} 6. g3 {[%clk 0:03:02.6]} 6... Nf6 {[%clk
0:03:01.8]} 7. Bg2 {[%clk 0:03:03.1]} 7... Be7 {[%clk 0:03:02.5]} 8. O-O {[%clk
0:03:03.8]} 8... O-O {[%clk 0:03:03.2]} 9. dxc5 {[%clk 0:03:04.5]} 9... Bxc5
{[%clk 0:03:02.6]} 10. Bg5 {[%clk 0:03:05.2]} 10... d4 {[%clk 0:03:02.7]} 11.
Ne4 {[%clk 0:03:05.5]} 11... Be7 {[%clk 0:03:02.8]} 12. Bxf6 {[%clk 0:03:06.1]}
12... Bxf6 {[%clk 0:03:03.7]} 13. b4 {[%clk 0:03:06.7]} 13... a6 {[%clk
0:03:03.2]} 14. Rb1 {[%clk 0:02:56.1]} 14... Re8 {[%clk 0:02:56.8]} 15. Nxf6+
{[%clk 0:02:54.6]} 15... Qxf6 {[%clk 0:02:57.7]} 16. a4 {[%clk 0:02:55.2]} 16...
Bf5 {[%clk 0:02:53.1]} 17. Rb3 {[%clk 0:02:45.2]} 17... Rad8 {[%clk 0:02:39]}
18. b5 {[%clk 0:02:44.2]} 18... Na5 {[%clk 0:02:24.9]} 19. Rb4 {[%clk
0:02:42.3]} 19... d3 {[%clk 0:02:16.4]} 20. e3 {[%clk 0:02:39.4]} 20... Be4
{[%clk 0:01:34.7]} 21. Nd2 {[%clk 0:02:33]} 21... Bxg2 {[%clk 0:01:31.1]} 22.
Kxg2 {[%clk 0:02:33.9]} 22... Qc3 {[%clk 0:01:15.3]} 23. Rh4 {[%clk 0:02:29.1]}
23... axb5 {[%clk 0:01:08.2]} 24. axb5 {[%clk 0:02:30]} 24... Qc2 {[%clk
0:00:52.2]} 25. Nf3 {[%clk 0:02:23.2]} 25... Nb3 {[%clk 0:00:35.2]} 26. Rb4
{[%clk 0:02:18.7]} 26... Nc5 {[%clk 0:00:28]} 27. Qxc2 {[%clk 0:02:16.3]} 27...
dxc2 {[%clk 0:00:25.8]} 28. Rc4 {[%clk 0:02:16.8]} 28... Rc8 {[%clk 0:00:18.1]}
29. Rxc2 {[%clk 0:02:15]} 29... Nd3 {[%clk 0:00:17.1]} 30. Rxc8 {[%clk
0:02:13.9]} 30... Rxc8 {[%clk 0:00:18]} 31. Nd4 {[%clk 0:02:14.1]} 31... Kf8
{[%clk 0:00:16.7]} 32. Rd1 {[%clk 0:02:12.6]} 32... Ne5 {[%clk 0:00:16.2]} 33.
Ra1 {[%clk 0:02:08.1]} 33... g6 {[%clk 0:00:15.2]} 34. Ra7 {[%clk 0:02:08]}
34... Rb8 {[%clk 0:00:15.6]} 35. Kf1 {[%clk 0:02:05.9]} 35... Nc4 {[%clk
0:00:11.8]} 36. Ke2 {[%clk 0:02:04.4]} 36... Nd6 {[%clk 0:00:10.5]} 37. Kd3
{[%clk 0:02:03.5]} 37... Rc8 {[%clk 0:00:08.8]} 38. Ra1 {[%clk 0:01:56.9]} 38...
Rc5 {[%clk 0:00:08.7]} 39. Rb1 {[%clk 0:01:54.5]} 39... Ke7 {[%clk 0:00:09.1]}
40. h4 {[%clk 0:01:54.3]} 40... f6 {[%clk 0:00:08.3]} 41. Rb2 {[%clk 0:01:54]}
41... g5 {[%clk 0:00:07.8]} 42. Rc2 {[%clk 0:01:51]} 42... Rxc2 {[%clk
0:00:04.2]} 43. Kxc2 {[%clk 0:01:51.9]} 43... Ne4 {[%clk 0:00:03.7]} 44. hxg5
{[%clk 0:01:37.8]} 44... fxg5 {[%clk 0:00:04.6]} 45. f4 {[%clk 0:01:37.7]} 45...
Nxg3 {[%clk 0:00:02.1]} 46. fxg5 {[%clk 0:01:37.5]} 46... Ne4 {[%clk 0:00:02.3]}
47. Nf3 {[%clk 0:01:36.4]} 47... Ke6 {[%clk 0:00:02.6]} 48. Kd3 {[%clk
0:01:36.3]} 48... Nd6 {[%clk 0:00:03.1]} 49. b6 {[%clk 0:01:32.9]} 49... Kf5
{[%clk 0:00:03.3]} 50. Kd4 {[%clk 0:01:32.1]} 50... Ne4 {[%clk 0:00:02.8]} 51.
Nh4+ {[%clk 0:01:31.1]} 51... Kxg5 {[%clk 0:00:02.8]} 52. Kxe4 {[%clk
0:01:30.8]} 52... Kxh4 {[%clk 0:00:03.3]} 53. Kf4 {[%clk 0:01:31.5]} 53... Kh5
{[%clk 0:00:03.2]} 54. Kf5 {[%clk 0:01:31.9]} 54... Kh6 {[%clk 0:00:02.5]} 55.
Kf6 {[%clk 0:01:32.2]} 55... Kh5 {[%clk 0:00:03]} 56. e4 {[%clk 0:01:32.8]}
56... Kg4 {[%clk 0:00:02.7]} 57. e5 {[%clk 0:01:33.5]} 57... h5 {[%clk
0:00:03.6]} 58. e6 {[%clk 0:01:34.2]} 58... h4 {[%clk 0:00:04.5]} 59. e7 {[%clk
0:01:34.8]} 59... h3 {[%clk 0:00:05.4]} 60. e8=Q {[%clk 0:01:35.4]} 60... h2
{[%clk 0:00:06.3]} 61. Qc8+ {[%clk 0:01:36]} 61... Kg3 {[%clk 0:00:07.1]} 62.
Qxb7 {[%clk 0:01:36.7]} 1-0

[Event "*** Titled Tuesday Blitz"]
[Site "Chess.com"]
[Date "2020.11.03"]
[Round "6"]
[White "Xeniya2005"]
[Black "FMJoseHerrera"]
[Result "0-1"]
[WhiteElo "2391"]
[BlackElo "2572"]
[TimeControl "180+1"]
[EndTime "11:10:03 PST"]
[Termination "FMJoseHerrera won by resignation"]

1. e4 {[%clk 0:03:00.9]} 1... c5 {[%clk 0:02:59.6]} 2. Be2 {[%clk 0:03:00.7]}
2... e6 {[%clk 0:02:59.5]} 3. f4 {[%clk 0:03:00.7]} 3... b6 {[%clk 0:02:59.3]}
4. Nf3 {[%clk 0:03:00.5]} 4... Bb7 {[%clk 0:02:59.7]} 5. d3 {[%clk 0:03:00.8]}
5... Qc7 {[%clk 0:03:00.1]} 6. Be3 {[%clk 0:02:59.6]} 6... d6 {[%clk 0:02:59.5]}
7. Nbd2 {[%clk 0:02:59.1]} 7... Nf6 {[%clk 0:02:58.6]} 8. c3 {[%clk 0:02:57.8]}
8... Nbd7 {[%clk 0:02:57.7]} 9. Rc1 {[%clk 0:02:53.6]} 9... Be7 {[%clk
0:02:57.5]} 10. O-O {[%clk 0:02:45.2]} 10... Ng4 {[%clk 0:02:56.9]} 11. Bf2
{[%clk 0:02:44.7]} 11... Nxf2 {[%clk 0:02:57.2]} 12. Rxf2 {[%clk 0:02:44.8]}
12... h5 {[%clk 0:02:56.7]} 13. d4 {[%clk 0:02:43.7]} 13... Nf6 {[%clk
0:02:54.7]} 14. Bd3 {[%clk 0:02:42]} 14... Rc8 {[%clk 0:02:50.7]} 15. Rf1 {[%clk
0:02:35.8]} 15... Qb8 {[%clk 0:02:42.5]} 16. Qe2 {[%clk 0:02:32.8]} 16... h4
{[%clk 0:02:38.7]} 17. f5 {[%clk 0:02:20.3]} 17... e5 {[%clk 0:02:33]} 18. dxe5
{[%clk 0:02:13.1]} 18... dxe5 {[%clk 0:02:31.9]} 19. Bb5+ {[%clk 0:02:12.8]}
19... Kf8 {[%clk 0:02:31.4]} 20. Bc4 {[%clk 0:02:07.5]} 20... Nh5 {[%clk
0:02:23.2]} 21. Qe3 {[%clk 0:01:58.8]} 21... Nf4 {[%clk 0:02:06.5]} 22. g3
{[%clk 0:01:53.9]} 22... hxg3 {[%clk 0:02:01.1]} 23. hxg3 {[%clk 0:01:53.1]}
23... Nh5 {[%clk 0:01:31.3]} 24. Kg2 {[%clk 0:01:51.7]} 24... Rd8 {[%clk
0:01:26.1]} 25. Rh1 {[%clk 0:01:46.2]} 25... Rh6 {[%clk 0:01:24.7]} 26. Rce1
{[%clk 0:01:30.3]} 26... a6 {[%clk 0:01:15.7]} 27. a4 {[%clk 0:01:25.3]} 27...
Bf6 {[%clk 0:01:00.5]} 28. Ng5 {[%clk 0:01:08]} 28... b5 {[%clk 0:00:57.3]} 29.
axb5 {[%clk 0:00:57.7]} 29... axb5 {[%clk 0:00:57.2]} 30. Ba2 {[%clk 0:00:56]}
30... Nf4+ {[%clk 0:00:45.5]} 31. gxf4 {[%clk 0:00:43.7]} 31... exf4 {[%clk
0:00:46.4]} 32. Qxc5+ {[%clk 0:00:23.5]} 32... Be7 {[%clk 0:00:46.1]} 33. Qf2
{[%clk 0:00:23.1]} 33... Bxg5 {[%clk 0:00:44.5]} 34. Nf3 {[%clk 0:00:22.6]}
34... Rxh1 {[%clk 0:00:39.2]} 35. Rxh1 {[%clk 0:00:20.6]} 35... Bxe4 {[%clk
0:00:38.3]} 36. Rh8+ {[%clk 0:00:19.7]} 36... Ke7 {[%clk 0:00:38]} 37. Qc5+
{[%clk 0:00:19.3]} 37... Qd6 {[%clk 0:00:35.3]} 38. Qf2 {[%clk 0:00:11.6]} 38...
Rxh8 {[%clk 0:00:33]} 0-1

[Event "*** Titled Tuesday Blitz"]
[Site "Chess.com"]
[Date "2020.11.03"]
[Round "6"]
[White "CzechmVIII"]
[Black "Chessbard1972"]
[Result "0-1"]
[WhiteElo "2133"]
[BlackElo "2276"]
[TimeControl "180+1"]
[EndTime "11:10:04 PST"]
[Termination "Chessbard1972 won by checkmate"]

1. e4 {[%clk 0:03:00.9]} 1... c5 {[%clk 0:02:58.5]} 2. Nf3 {[%clk 0:03:00.8]}
2... a6 {[%clk 0:02:58.9]} 3. Nc3 {[%clk 0:03:00.6]} 3... Nc6 {[%clk 0:02:58.3]}
4. d4 {[%clk 0:03:00.2]} 4... cxd4 {[%clk 0:02:58.5]} 5. Nxd4 {[%clk 0:03:01.1]}
5... e6 {[%clk 0:02:58.9]} 6. Bf4 {[%clk 0:02:33.5]} 6... Bb4 {[%clk 0:02:54.2]}
7. Nxc6 {[%clk 0:02:30.6]} 7... bxc6 {[%clk 0:02:52.6]} 8. Qd4 {[%clk
0:02:29.5]} 8... Bf8 {[%clk 0:02:49.8]} 9. Bd6 {[%clk 0:02:21.7]} 9... Bxd6
{[%clk 0:02:45.7]} 10. Qxd6 {[%clk 0:02:21.8]} 10... Ne7 {[%clk 0:02:42.8]} 11.
O-O-O {[%clk 0:02:12]} 11... O-O {[%clk 0:02:42.3]} 12. Be2 {[%clk 0:02:08.4]}
12... Ng6 {[%clk 0:02:40.1]} 13. h4 {[%clk 0:02:01.2]} 13... Qf6 {[%clk
0:02:38.3]} 14. h5 {[%clk 0:01:48]} 14... Qf4+ {[%clk 0:02:37.9]} 15. Kb1 {[%clk
0:01:48.3]} 15... Qxd6 {[%clk 0:02:37.3]} 16. Rxd6 {[%clk 0:01:48.4]} 16... Nf4
{[%clk 0:02:36.9]} 17. Bf3 {[%clk 0:01:46.4]} 17... e5 {[%clk 0:02:32.1]} 18. h6
{[%clk 0:01:25.6]} 18... g6 {[%clk 0:02:29.8]} 19. Rhd1 {[%clk 0:01:20.6]} 19...
Rb8 {[%clk 0:02:22.4]} 20. Na4 {[%clk 0:01:11.5]} 20... Ne6 {[%clk 0:02:19.1]}
21. Bg4 {[%clk 0:01:03.2]} 21... f5 {[%clk 0:02:17]} 22. exf5 {[%clk 0:01:03.5]}
22... gxf5 {[%clk 0:02:16.8]} 23. Be2 {[%clk 0:00:59.2]} 23... Rf6 {[%clk
0:02:11.3]} 24. Rh1 {[%clk 0:00:51.5]} 24... Rg6 {[%clk 0:02:06.7]} 25. Bc4
{[%clk 0:00:43.5]} 25... Rb4 {[%clk 0:02:00.1]} 26. b3 {[%clk 0:00:39.4]} 26...
Kf7 {[%clk 0:01:50.6]} 27. a3 {[%clk 0:00:32.7]} 27... Rb8 {[%clk 0:01:47.5]}
28. Bxe6+ {[%clk 0:00:20.2]} 28... Rxe6 {[%clk 0:01:46.6]} 29. Rhd1 {[%clk
0:00:14.5]} 29... Ke7 {[%clk 0:01:45.2]} 30. Rxe6+ {[%clk 0:00:14.9]} 30... Kxe6
{[%clk 0:01:45.1]} 31. Nc5+ {[%clk 0:00:14.2]} 31... Ke7 {[%clk 0:01:45.2]} 32.
Nd3 {[%clk 0:00:13.5]} 32... d6 {[%clk 0:01:44.9]} 33. f4 {[%clk 0:00:13.4]}
33... e4 {[%clk 0:01:40.9]} 34. Nb4 {[%clk 0:00:13.6]} 34... Rb6 {[%clk
0:01:37.8]} 35. Kb2 {[%clk 0:00:12.2]} 35... a5 {[%clk 0:01:37.2]} 36. Na2
{[%clk 0:00:11.6]} 36... Be6 {[%clk 0:01:35.7]} 37. Re1 {[%clk 0:00:10.8]} 37...
d5 {[%clk 0:01:35.3]} 38. Re3 {[%clk 0:00:10.9]} 38... d4 {[%clk 0:01:34.9]} 39.
Rg3 {[%clk 0:00:11.2]} 39... d3 {[%clk 0:01:28]} 40. c4 {[%clk 0:00:03.8]} 40...
Bxc4 {[%clk 0:01:24.2]} 41. Kc3 {[%clk 0:00:03.7]} 41... Bxb3 {[%clk 0:01:23.4]}
42. Nc1 {[%clk 0:00:04]} 42... Bf7 {[%clk 0:01:20.5]} 43. Rg7 {[%clk 0:00:04.1]}
43... Rb1 {[%clk 0:01:13.4]} 44. Kd2 {[%clk 0:00:03.1]} 44... Rb2+ {[%clk
0:01:12.3]} 45. Ke3 {[%clk 0:00:03.5]} 45... Rc2 {[%clk 0:01:08.9]} 46. Rxh7
{[%clk 0:00:03.3]} 46... Rxc1 {[%clk 0:01:07.8]} 47. Rh8 {[%clk 0:00:03.7]}
47... Re1+ {[%clk 0:01:06.1]} 48. Kd2 {[%clk 0:00:03.4]} 48... Re2+ {[%clk
0:01:05.9]} 49. Kd1 {[%clk 0:00:03.9]} 49... Rxg2 {[%clk 0:01:03.6]} 50. Ra8
{[%clk 0:00:03.7]} 50... e3 {[%clk 0:01:02.6]} 51. Ra7+ {[%clk 0:00:02.3]} 51...
Kf6 {[%clk 0:01:02]} 52. h7 {[%clk 0:00:01.9]} 52... Rg1# {[%clk 0:01:01.8]} 0-1